{"text_format":"1","workbook":"xlsx","n_sheets":4,"sheets":["TABELLONE 24m","TABELLONE 18m","TAVOLI 18m","TAVOLI 24m"],"not_rendered":{"charts":0,"images":3,"macros":0,"external_links":0,"defined_names":4,"comments":0,"pivot_tables":0},"unopened":[],"bounds":{"document_bytes":16777216,"sheet_cells":100000,"rows_first":2000,"rows_last":500,"rows_between":2000,"halvings":0,"cell_chars":16384,"cell_head_chars":4096},"cells_cut":0,"cells_raw":0,"read":"whole","date_system":"1900"}

{"sheet":"TABELLONE 24m","index":0,"n_rows":404,"n_cols":21,"rows_kept":404,"cut":false,"hidden":false,"merged":[[0,3,0,13],[4,10,4,13],[4,2,4,3],[4,4,4,5],[4,6,4,7],[4,8,4,9],[19,6,19,7],[20,6,20,7],[7,6,7,7],[8,6,8,7],[9,6,9,7],[10,6,10,7],[11,6,11,7],[12,6,12,7],[13,6,13,7],[14,6,14,7],[33,6,33,7],[6,6,6,7],[5,6,5,7],[28,6,28,7],[29,6,29,7],[30,6,30,7],[31,6,31,7],[32,6,32,7],[21,6,21,7],[22,6,22,7],[23,6,23,7],[26,6,26,7],[27,6,27,7],[16,6,16,7],[17,6,17,7],[18,6,18,7]]}
[null,null,null,"DUPLICATO a rotazione"]
[null,null,null,"COPPIA 1 ",null,null,null,"COPPIA 3 "]
[null,null,null,"COPPIA 2",null,null,null,"COPPIA 4 "]
[null,null,null,null,null,null,null,null,null,null,null,null,null,null,null,"match points",null,null,null,"match points"]
["Turno","Boards","Tavolo 1",null,"Tavolo 2",null,"differenza punti",null,"match point",null,"Punteggio coppie-squadre",null,null,null,null,"0-10",0,null,null,10,0]
[null,null,"N-S","E-O","N-S","E-O","sq. A +",null,null,null,null,null,null,null,null,"20-40",1,null,null,20,1]
[null,null,"sq. A","sq. B","sq. B","sq. A","sq. B -",null,"sq. A","sq. B",1,2,3,4,null,"50-80",2,null,null,30,1]
[null,1,null,null,null,null,{"$f":"C8+F8-D8-E8","v":0},null,{"$f":"IF(G8>0,INDEX($U$5:$U$404,MATCH(G8,$T$5:$T$404,0)),\"\")","v":""},{"$f":"IF(G8>=0,\"\",INDEX($U$5:$U$404,MATCH(-G8,$T$5:$T$404,0)))","v":""},null,null,null,null,null,"90-120",3,null,null,40,1]
[null,2,null,null,null,null,0,null,{"$f":"IF(G9>0,INDEX($U$5:$U$404,MATCH(G9,$T$5:$T$404,0)),\"\")","v":""},"",null,null,null,null,null,"130-160",4,null,null,50,2]
[null,3,null,null,null,null,0,null,"","",null,null,null,null,null,"170-210",5,null,null,60,2]
["I°",4,null,null,null,null,0,null,"","","A","B","B","A",null,"220-260",6,null,null,70,2]
[null,5,null,null,null,null,0,null,"","",null,null,null,null,null,"270-310",7,null,null,80,2]
[null,6,null,null,null,null,0,null,"","",null,null,null,null,null,"320-360",8,null,null,90,3]
[null,7,null,null,null,null,0,null,"",{"$f":"IF(G14>=0,\"\",INDEX($U$5:$U$404,MATCH(-G14,$T$5:$T$404,0)))","v":""},null,null,null,null,null,"370-420",9,null,null,100,3]
[null,8,null,null,null,null,0,null,"",{"$f":"IF(G15>=0,\"\",INDEX($U$5:$U$404,MATCH(-G15,$T$5:$T$404,0)))","v":""},null,null,null,null,null,"430-490",10,null,null,110,3]
[null,null,"Risultato Turno I°",null,null,null,null,null,{"$f":"SUM(I8:I15)","v":0},{"$f":"SUM(J8:J15)","v":0},{"$f":"I16","v":0},{"$f":"J16","v":0},{"$f":"J16","v":0},{"$f":"I16","v":0},null,"500-590",11,null,null,120,3]
[null,1,null,null,null,null,{"$f":"C17+F17-D17-E17","v":0},null,{"$f":"IF(G17>0,INDEX($U$5:$U$404,MATCH(G17,$T$5:$T$404,0)),\"\")","v":""},{"$f":"IF(G17>=0,\"\",INDEX($U$5:$U$404,MATCH(-G17,$T$5:$T$404,0)))","v":""},null,null,null,null,null,"600-740",12,null,null,130,4]
[null,2,null,null,null,null,0,null,{"$f":"IF(G18>0,INDEX($U$5:$U$404,MATCH(G18,$T$5:$T$404,0)),\"\")","v":""},"",null,null,null,null,null,"750-890",13,null,null,140,4]
[null,3,null,null,null,null,0,null,"","",null,null,null,null,null,"900-1090",14,null,null,150,4]
["II°",4,null,null,null,null,0,null,"","","A","B","A","B",null,"1100-1290",15,null,null,160,4]
[null,5,null,null,null,null,0,null,"","",null,null,null,null,null,"1300-1490",16,null,null,170,5]
[null,6,null,null,null,null,0,null,"","",null,null,null,null,null,"1500-1740",17,null,null,180,5]
[null,7,null,null,null,null,0,null,"","",null,null,null,null,null,"1750-1990",18,null,null,190,5]
[null,8,null,null,null,null,0,null,"","",null,null,null,null,null,"2000-2240",19,null,null,200,5]
[null,null,"Risultato Turno II°",null,null,null,null,null,{"$f":"SUM(I17:I24)","v":0},{"$f":"SUM(J17:J24)","v":0},{"$f":"I25","v":0},{"$f":"J25","v":0},{"$f":"I25","v":0},{"$f":"J25","v":0},null,"2250-2490",20,null,null,210,5]
[null,null,"Risultato I° + II° Turno",null,null,null,null,null,null,null,{"$f":"K16+K25","v":0},{"$f":"L16+L25","v":0},{"$f":"M16+M25","v":0},{"$f":"N16+N25","v":0},null,"2500-2990",21,null,null,220,6]
[null,1,null,null,null,null,{"$f":"C27+F27-D27-E27","v":0},null,{"$f":"IF(G27>0,INDEX($U$5:$U$404,MATCH(G27,$T$5:$T$404,0)),\"\")","v":""},{"$f":"IF(G27>=0,\"\",INDEX($U$5:$U$404,MATCH(-G27,$T$5:$T$404,0)))","v":""},null,null,null,null,null,"3000-3490",22,null,null,230,6]
[null,2,null,null,null,null,0,null,{"$f":"IF(G28>0,INDEX($U$5:$U$404,MATCH(G28,$T$5:$T$404,0)),\"\")","v":""},"",null,null,null,null,null,"3500-3990",23,null,null,240,6]
[null,3,null,null,null,null,0,null,"","",null,null,null,null,null,"4000-",24,null,null,250,6]
["III°",4,null,null,null,null,0,null,"","","A","A","B","B",null,null,null,null,null,260,6]
[null,5,null,null,null,null,0,null,"","",null,null,null,null,null,null,null,null,null,270,7]
[null,6,null,null,null,null,0,null,"","",null,null,null,null,null,null,null,null,null,280,7]
[null,7,null,null,null,null,0,null,"","",null,null,null,null,null,null,null,null,null,290,7]
[null,8,null,null,null,null,0,null,"","",null,null,null,null,null,null,null,null,null,300,7]
[null,null,"Risultato Turno III°",null,null,null,null,null,{"$f":"SUM(I27:I34)","v":0},{"$f":"SUM(J27:J34)","v":0},{"$f":"I35","v":0},{"$f":"I35","v":0},{"$f":"J35","v":0},{"$f":"J35","v":0},null,null,null,null,null,310,7]
[null,null,"Risultato Finale",null,null,null,null,null,null,null,{"$f":"K26+K35","v":0},{"$f":"L26+L35","v":0},{"$f":"M26+M35","v":0},{"$f":"N26+N35","v":0},null,null,null,null,null,320,8]
[null,null,null,null,null,null,null,null,null,null,null,null,null,null,null,null,null,null,null,330,8]
[null,null,null,null,null,null,null,null,null,null,null,null,null,null,null,null,null,null,null,340,8]
[null,null,null,null,null,null,null,null,null,null,null,null,null,null,null,null,null,null,null,350,8]
[null,null,null,null,null,null,null,null,null,null,null,null,null,null,null,null,null,null,null,360,8]
[null,null,null,null,null,null,null,null,null,null,null,null,null,null,null,null,null,null,null,370,9]
[null,null,null,null,null,null,null,null,null,null,null,null,null,null,null,null,null,null,null,380,9]
[null,null,null,null,null,null,null,null,null,null,null,null,null,null,null,null,null,null,null,390,9]
[null,null,null,null,null,null,null,null,null,null,null,null,null,null,null,null,null,null,null,400,9]
[null,null,null,null,null,null,null,null,null,null,null,null,null,null,null,null,null,null,null,410,9]
[null,null,null,null,null,null,null,null,null,null,null,null,null,null,null,null,null,null,null,420,9]
[null,null,null,null,null,null,null,null,null,null,null,null,null,null,null,null,null,null,null,430,10]
[null,null,null,null,null,null,null,null,null,null,null,null,null,null,null,null,null,null,null,440,10]
[null,null,null,null,null,null,null,null,null,null,null,null,null,null,null,null,null,null,null,450,10]
[null,null,null,null,null,null,null,null,null,null,null,null,null,null,null,null,null,null,null,460,10]
[null,null,null,null,null,null,null,null,null,null,null,null,null,null,null,null,null,null,null,470,10]
[null,null,null,null,null,null,null,null,null,null,null,null,null,null,null,null,null,null,null,480,10]
[null,null,null,null,null,null,null,null,null,null,null,null,null,null,null,null,null,null,null,490,10]
[null,null,null,null,null,null,null,null,null,null,null,null,null,null,null,null,null,null,null,500,11]
[null,null,null,null,null,null,null,null,null,null,null,null,null,null,null,null,null,null,null,510,11]
[null,null,null,null,null,null,null,null,null,null,null,null,null,null,null,null,null,null,null,520,11]
[null,null,null,null,null,null,null,null,null,null,null,null,null,null,null,null,null,null,null,530,11]
[null,null,null,null,null,null,null,null,null,null,null,null,null,null,null,null,null,null,null,540,11]
[null,null,null,null,null,null,null,null,null,null,null,null,null,null,null,null,null,null,null,550,11]
[null,null,null,null,null,null,null,null,null,null,null,null,null,null,null,null,null,null,null,560,11]
[null,null,null,null,null,null,null,null,null,null,null,null,null,null,null,null,null,null,null,570,11]
[null,null,null,null,null,null,null,null,null,null,null,null,null,null,null,null,null,null,null,580,11]
[null,null,null,null,null,null,null,null,null,null,null,null,null,null,null,null,null,null,null,590,11]
[null,null,null,null,null,null,null,null,null,null,null,null,null,null,null,null,null,null,null,600,12]
[null,null,null,null,null,null,null,null,null,null,null,null,null,null,null,null,null,null,null,610,12]
[null,null,null,null,null,null,null,null,null,null,null,null,null,null,null,null,null,null,null,620,12]
[null,null,null,null,null,null,null,null,null,null,null,null,null,null,null,null,null,null,null,630,12]
[null,null,null,null,null,null,null,null,null,null,null,null,null,null,null,null,null,null,null,640,12]
[null,null,null,null,null,null,null,null,null,null,null,null,null,null,null,null,null,null,null,650,12]
[null,null,null,null,null,null,null,null,null,null,null,null,null,null,null,null,null,null,null,660,12]
[null,null,null,null,null,null,null,null,null,null,null,null,null,null,null,null,null,null,null,670,12]
[null,null,null,null,null,null,null,null,null,null,null,null,null,null,null,null,null,null,null,680,12]
[null,null,null,null,null,null,null,null,null,null,null,null,null,null,null,null,null,null,null,690,12]
[null,null,null,null,null,null,null,null,null,null,null,null,null,null,null,null,null,null,null,700,12]
[null,null,null,null,null,null,null,null,null,null,null,null,null,null,null,null,null,null,null,710,12]
[null,null,null,null,null,null,null,null,null,null,null,null,null,null,null,null,null,null,null,720,12]
[null,null,null,null,null,null,null,null,null,null,null,null,null,null,null,null,null,null,null,730,12]
[null,null,null,null,null,null,null,null,null,null,null,null,null,null,null,null,null,null,null,740,12]
[null,null,null,null,null,null,null,null,null,null,null,null,null,null,null,null,null,null,null,750,13]
[null,null,null,null,null,null,null,null,null,null,null,null,null,null,null,null,null,null,null,760,13]
[null,null,null,null,null,null,null,null,null,null,null,null,null,null,null,null,null,null,null,770,13]
[null,null,null,null,null,null,null,null,null,null,null,null,null,null,null,null,null,null,null,780,13]
[null,null,null,null,null,null,null,null,null,null,null,null,null,null,null,null,null,null,null,790,13]
[null,null,null,null,null,null,null,null,null,null,null,null,null,null,null,null,null,null,null,800,13]
[null,null,null,null,null,null,null,null,null,null,null,null,null,null,null,null,null,null,null,810,13]
[null,null,null,null,null,null,null,null,null,null,null,null,null,null,null,null,null,null,null,820,13]
[null,null,null,null,null,null,null,null,null,null,null,null,null,null,null,null,null,null,null,830,13]
[null,null,null,null,null,null,null,null,null,null,null,null,null,null,null,null,null,null,null,840,13]
[null,null,null,null,null,null,null,null,null,null,null,null,null,null,null,null,null,null,null,850,13]
[null,null,null,null,null,null,null,null,null,null,null,null,null,null,null,null,null,null,null,860,13]
[null,null,null,null,null,null,null,null,null,null,null,null,null,null,null,null,null,null,null,870,13]
[null,null,null,null,null,null,null,null,null,null,null,null,null,null,null,null,null,null,null,880,13]
[null,null,null,null,null,null,null,null,null,null,null,null,null,null,null,null,null,null,null,890,13]
[null,null,null,null,null,null,null,null,null,null,null,null,null,null,null,null,null,null,null,900,14]
[null,null,null,null,null,null,null,null,null,null,null,null,null,null,null,null,null,null,null,910,14]
[null,null,null,null,null,null,null,null,null,null,null,null,null,null,null,null,null,null,null,920,14]
[null,null,null,null,null,null,null,null,null,null,null,null,null,null,null,null,null,null,null,930,14]
[null,null,null,null,null,null,null,null,null,null,null,null,null,null,null,null,null,null,null,940,14]
[null,null,null,null,null,null,null,null,null,null,null,null,null,null,null,null,null,null,null,950,14]
[null,null,null,null,null,null,null,null,null,null,null,null,null,null,null,null,null,null,null,960,14]
[null,null,null,null,null,null,null,null,null,null,null,null,null,null,null,null,null,null,null,970,14]
[null,null,null,null,null,null,null,null,null,null,null,null,null,null,null,null,null,null,null,980,14]
[null,null,null,null,null,null,null,null,null,null,null,null,null,null,null,null,null,null,null,990,14]
[null,null,null,null,null,null,null,null,null,null,null,null,null,null,null,null,null,null,null,1000,14]
[null,null,null,null,null,null,null,null,null,null,null,null,null,null,null,null,null,null,null,1010,14]
[null,null,null,null,null,null,null,null,null,null,null,null,null,null,null,null,null,null,null,1020,14]
[null,null,null,null,null,null,null,null,null,null,null,null,null,null,null,null,null,null,null,1030,14]
[null,null,null,null,null,null,null,null,null,null,null,null,null,null,null,null,null,null,null,1040,14]
[null,null,null,null,null,null,null,null,null,null,null,null,null,null,null,null,null,null,null,1050,14]
[null,null,null,null,null,null,null,null,null,null,null,null,null,null,null,null,null,null,null,1060,14]
[null,null,null,null,null,null,null,null,null,null,null,null,null,null,null,null,null,null,null,1070,14]
[null,null,null,null,null,null,null,null,null,null,null,null,null,null,null,null,null,null,null,1080,14]
[null,null,null,null,null,null,null,null,null,null,null,null,null,null,null,null,null,null,null,1090,14]
[null,null,null,null,null,null,null,null,null,null,null,null,null,null,null,null,null,null,null,1100,15]
[null,null,null,null,null,null,null,null,null,null,null,null,null,null,null,null,null,null,null,1110,15]
[null,null,null,null,null,null,null,null,null,null,null,null,null,null,null,null,null,null,null,1120,15]
[null,null,null,null,null,null,null,null,null,null,null,null,null,null,null,null,null,null,null,1130,15]
[null,null,null,null,null,null,null,null,null,null,null,null,null,null,null,null,null,null,null,1140,15]
[null,null,null,null,null,null,null,null,null,null,null,null,null,null,null,null,null,null,null,1150,15]
[null,null,null,null,null,null,null,null,null,null,null,null,null,null,null,null,null,null,null,1160,15]
[null,null,null,null,null,null,null,null,null,null,null,null,null,null,null,null,null,null,null,1170,15]
[null,null,null,null,null,null,null,null,null,null,null,null,null,null,null,null,null,null,null,1180,15]
[null,null,null,null,null,null,null,null,null,null,null,null,null,null,null,null,null,null,null,1190,15]
[null,null,null,null,null,null,null,null,null,null,null,null,null,null,null,null,null,null,null,1200,15]
[null,null,null,null,null,null,null,null,null,null,null,null,null,null,null,null,null,null,null,1210,15]
[null,null,null,null,null,null,null,null,null,null,null,null,null,null,null,null,null,null,null,1220,15]
[null,null,null,null,null,null,null,null,null,null,null,null,null,null,null,null,null,null,null,1230,15]
[null,null,null,null,null,null,null,null,null,null,null,null,null,null,null,null,null,null,null,1240,15]
[null,null,null,null,null,null,null,null,null,null,null,null,null,null,null,null,null,null,null,1250,15]
[null,null,null,null,null,null,null,null,null,null,null,null,null,null,null,null,null,null,null,1260,15]
[null,null,null,null,null,null,null,null,null,null,null,null,null,null,null,null,null,null,null,1270,15]
[null,null,null,null,null,null,null,null,null,null,null,null,null,null,null,null,null,null,null,1280,15]
[null,null,null,null,null,null,null,null,null,null,null,null,null,null,null,null,null,null,null,1290,15]
[null,null,null,null,null,null,null,null,null,null,null,null,null,null,null,null,null,null,null,1300,16]
[null,null,null,null,null,null,null,null,null,null,null,null,null,null,null,null,null,null,null,1310,16]
[null,null,null,null,null,null,null,null,null,null,null,null,null,null,null,null,null,null,null,1320,16]
[null,null,null,null,null,null,null,null,null,null,null,null,null,null,null,null,null,null,null,1330,16]
[null,null,null,null,null,null,null,null,null,null,null,null,null,null,null,null,null,null,null,1340,16]
[null,null,null,null,null,null,null,null,null,null,null,null,null,null,null,null,null,null,null,1350,16]
[null,null,null,null,null,null,null,null,null,null,null,null,null,null,null,null,null,null,null,1360,16]
[null,null,null,null,null,null,null,null,null,null,null,null,null,null,null,null,null,null,null,1370,16]
[null,null,null,null,null,null,null,null,null,null,null,null,null,null,null,null,null,null,null,1380,16]
[null,null,null,null,null,null,null,null,null,null,null,null,null,null,null,null,null,null,null,1390,16]
[null,null,null,null,null,null,null,null,null,null,null,null,null,null,null,null,null,null,null,1400,16]
[null,null,null,null,null,null,null,null,null,null,null,null,null,null,null,null,null,null,null,1410,16]
[null,null,null,null,null,null,null,null,null,null,null,null,null,null,null,null,null,null,null,1420,16]
[null,null,null,null,null,null,null,null,null,null,null,null,null,null,null,null,null,null,null,1430,16]
[null,null,null,null,null,null,null,null,null,null,null,null,null,null,null,null,null,null,null,1440,16]
[null,null,null,null,null,null,null,null,null,null,null,null,null,null,null,null,null,null,null,1450,16]
[null,null,null,null,null,null,null,null,null,null,null,null,null,null,null,null,null,null,null,1460,16]
[null,null,null,null,null,null,null,null,null,null,null,null,null,null,null,null,null,null,null,1470,16]
[null,null,null,null,null,null,null,null,null,null,null,null,null,null,null,null,null,null,null,1480,16]
[null,null,null,null,null,null,null,null,null,null,null,null,null,null,null,null,null,null,null,1490,16]
[null,null,null,null,null,null,null,null,null,null,null,null,null,null,null,null,null,null,null,1500,17]
[null,null,null,null,null,null,null,null,null,null,null,null,null,null,null,null,null,null,null,1510,17]
[null,null,null,null,null,null,null,null,null,null,null,null,null,null,null,null,null,null,null,1520,17]
[null,null,null,null,null,null,null,null,null,null,null,null,null,null,null,null,null,null,null,1530,17]
[null,null,null,null,null,null,null,null,null,null,null,null,null,null,null,null,null,null,null,1540,17]
[null,null,null,null,null,null,null,null,null,null,null,null,null,null,null,null,null,null,null,1550,17]
[null,null,null,null,null,null,null,null,null,null,null,null,null,null,null,null,null,null,null,1560,17]
[null,null,null,null,null,null,null,null,null,null,null,null,null,null,null,null,null,null,null,1570,17]
[null,null,null,null,null,null,null,null,null,null,null,null,null,null,null,null,null,null,null,1580,17]
[null,null,null,null,null,null,null,null,null,null,null,null,null,null,null,null,null,null,null,1590,17]
[null,null,null,null,null,null,null,null,null,null,null,null,null,null,null,null,null,null,null,1600,17]
[null,null,null,null,null,null,null,null,null,null,null,null,null,null,null,null,null,null,null,1610,17]
[null,null,null,null,null,null,null,null,null,null,null,null,null,null,null,null,null,null,null,1620,17]
[null,null,null,null,null,null,null,null,null,null,null,null,null,null,null,null,null,null,null,1630,17]
[null,null,null,null,null,null,null,null,null,null,null,null,null,null,null,null,null,null,null,1640,17]
[null,null,null,null,null,null,null,null,null,null,null,null,null,null,null,null,null,null,null,1650,17]
[null,null,null,null,null,null,null,null,null,null,null,null,null,null,null,null,null,null,null,1660,17]
[null,null,null,null,null,null,null,null,null,null,null,null,null,null,null,null,null,null,null,1670,17]
[null,null,null,null,null,null,null,null,null,null,null,null,null,null,null,null,null,null,null,1680,17]
[null,null,null,null,null,null,null,null,null,null,null,null,null,null,null,null,null,null,null,1690,17]
[null,null,null,null,null,null,null,null,null,null,null,null,null,null,null,null,null,null,null,1700,17]
[null,null,null,null,null,null,null,null,null,null,null,null,null,null,null,null,null,null,null,1710,17]
[null,null,null,null,null,null,null,null,null,null,null,null,null,null,null,null,null,null,null,1720,17]
[null,null,null,null,null,null,null,null,null,null,null,null,null,null,null,null,null,null,null,1730,17]
[null,null,null,null,null,null,null,null,null,null,null,null,null,null,null,null,null,null,null,1740,17]
[null,null,null,null,null,null,null,null,null,null,null,null,null,null,null,null,null,null,null,1750,18]
[null,null,null,null,null,null,null,null,null,null,null,null,null,null,null,null,null,null,null,1760,18]
[null,null,null,null,null,null,null,null,null,null,null,null,null,null,null,null,null,null,null,1770,18]
[null,null,null,null,null,null,null,null,null,null,null,null,null,null,null,null,null,null,null,1780,18]
[null,null,null,null,null,null,null,null,null,null,null,null,null,null,null,null,null,null,null,1790,18]
[null,null,null,null,null,null,null,null,null,null,null,null,null,null,null,null,null,null,null,1800,18]
[null,null,null,null,null,null,null,null,null,null,null,null,null,null,null,null,null,null,null,1810,18]
[null,null,null,null,null,null,null,null,null,null,null,null,null,null,null,null,null,null,null,1820,18]
[null,null,null,null,null,null,null,null,null,null,null,null,null,null,null,null,null,null,null,1830,18]
[null,null,null,null,null,null,null,null,null,null,null,null,null,null,null,null,null,null,null,1840,18]
[null,null,null,null,null,null,null,null,null,null,null,null,null,null,null,null,null,null,null,1850,18]
[null,null,null,null,null,null,null,null,null,null,null,null,null,null,null,null,null,null,null,1860,18]
[null,null,null,null,null,null,null,null,null,null,null,null,null,null,null,null,null,null,null,1870,18]
[null,null,null,null,null,null,null,null,null,null,null,null,null,null,null,null,null,null,null,1880,18]
[null,null,null,null,null,null,null,null,null,null,null,null,null,null,null,null,null,null,null,1890,18]
[null,null,null,null,null,null,null,null,null,null,null,null,null,null,null,null,null,null,null,1900,18]
[null,null,null,null,null,null,null,null,null,null,null,null,null,null,null,null,null,null,null,1910,18]
[null,null,null,null,null,null,null,null,null,null,null,null,null,null,null,null,null,null,null,1920,18]
[null,null,null,null,null,null,null,null,null,null,null,null,null,null,null,null,null,null,null,1930,18]
[null,null,null,null,null,null,null,null,null,null,null,null,null,null,null,null,null,null,null,1940,18]
[null,null,null,null,null,null,null,null,null,null,null,null,null,null,null,null,null,null,null,1950,18]
[null,null,null,null,null,null,null,null,null,null,null,null,null,null,null,null,null,null,null,1960,18]
[null,null,null,null,null,null,null,null,null,null,null,null,null,null,null,null,null,null,null,1970,18]
[null,null,null,null,null,null,null,null,null,null,null,null,null,null,null,null,null,null,null,1980,18]
[null,null,null,null,null,null,null,null,null,null,null,null,null,null,null,null,null,null,null,1990,18]
[null,null,null,null,null,null,null,null,null,null,null,null,null,null,null,null,null,null,null,2000,19]
[null,null,null,null,null,null,null,null,null,null,null,null,null,null,null,null,null,null,null,2010,19]
[null,null,null,null,null,null,null,null,null,null,null,null,null,null,null,null,null,null,null,2020,19]
[null,null,null,null,null,null,null,null,null,null,null,null,null,null,null,null,null,null,null,2030,19]
[null,null,null,null,null,null,null,null,null,null,null,null,null,null,null,null,null,null,null,2040,19]
[null,null,null,null,null,null,null,null,null,null,null,null,null,null,null,null,null,null,null,2050,19]
[null,null,null,null,null,null,null,null,null,null,null,null,null,null,null,null,null,null,null,2060,19]
[null,null,null,null,null,null,null,null,null,null,null,null,null,null,null,null,null,null,null,2070,19]
[null,null,null,null,null,null,null,null,null,null,null,null,null,null,null,null,null,null,null,2080,19]
[null,null,null,null,null,null,null,null,null,null,null,null,null,null,null,null,null,null,null,2090,19]
[null,null,null,null,null,null,null,null,null,null,null,null,null,null,null,null,null,null,null,2100,19]
[null,null,null,null,null,null,null,null,null,null,null,null,null,null,null,null,null,null,null,2110,19]
[null,null,null,null,null,null,null,null,null,null,null,null,null,null,null,null,null,null,null,2120,19]
[null,null,null,null,null,null,null,null,null,null,null,null,null,null,null,null,null,null,null,2130,19]
[null,null,null,null,null,null,null,null,null,null,null,null,null,null,null,null,null,null,null,2140,19]
[null,null,null,null,null,null,null,null,null,null,null,null,null,null,null,null,null,null,null,2150,19]
[null,null,null,null,null,null,null,null,null,null,null,null,null,null,null,null,null,null,null,2160,19]
[null,null,null,null,null,null,null,null,null,null,null,null,null,null,null,null,null,null,null,2170,19]
[null,null,null,null,null,null,null,null,null,null,null,null,null,null,null,null,null,null,null,2180,19]
[null,null,null,null,null,null,null,null,null,null,null,null,null,null,null,null,null,null,null,2190,19]
[null,null,null,null,null,null,null,null,null,null,null,null,null,null,null,null,null,null,null,2200,19]
[null,null,null,null,null,null,null,null,null,null,null,null,null,null,null,null,null,null,null,2210,19]
[null,null,null,null,null,null,null,null,null,null,null,null,null,null,null,null,null,null,null,2220,19]
[null,null,null,null,null,null,null,null,null,null,null,null,null,null,null,null,null,null,null,2230,19]
[null,null,null,null,null,null,null,null,null,null,null,null,null,null,null,null,null,null,null,2240,19]
[null,null,null,null,null,null,null,null,null,null,null,null,null,null,null,null,null,null,null,2250,20]
[null,null,null,null,null,null,null,null,null,null,null,null,null,null,null,null,null,null,null,2260,20]
[null,null,null,null,null,null,null,null,null,null,null,null,null,null,null,null,null,null,null,2270,20]
[null,null,null,null,null,null,null,null,null,null,null,null,null,null,null,null,null,null,null,2280,20]
[null,null,null,null,null,null,null,null,null,null,null,null,null,null,null,null,null,null,null,2290,20]
[null,null,null,null,null,null,null,null,null,null,null,null,null,null,null,null,null,null,null,2300,20]
[null,null,null,null,null,null,null,null,null,null,null,null,null,null,null,null,null,null,null,2310,20]
[null,null,null,null,null,null,null,null,null,null,null,null,null,null,null,null,null,null,null,2320,20]
[null,null,null,null,null,null,null,null,null,null,null,null,null,null,null,null,null,null,null,2330,20]
[null,null,null,null,null,null,null,null,null,null,null,null,null,null,null,null,null,null,null,2340,20]
[null,null,null,null,null,null,null,null,null,null,null,null,null,null,null,null,null,null,null,2350,20]
[null,null,null,null,null,null,null,null,null,null,null,null,null,null,null,null,null,null,null,2360,20]
[null,null,null,null,null,null,null,null,null,null,null,null,null,null,null,null,null,null,null,2370,20]
[null,null,null,null,null,null,null,null,null,null,null,null,null,null,null,null,null,null,null,2380,20]
[null,null,null,null,null,null,null,null,null,null,null,null,null,null,null,null,null,null,null,2390,20]
[null,null,null,null,null,null,null,null,null,null,null,null,null,null,null,null,null,null,null,2400,20]
[null,null,null,null,null,null,null,null,null,null,null,null,null,null,null,null,null,null,null,2410,20]
[null,null,null,null,null,null,null,null,null,null,null,null,null,null,null,null,null,null,null,2420,20]
[null,null,null,null,null,null,null,null,null,null,null,null,null,null,null,null,null,null,null,2430,20]
[null,null,null,null,null,null,null,null,null,null,null,null,null,null,null,null,null,null,null,2440,20]
[null,null,null,null,null,null,null,null,null,null,null,null,null,null,null,null,null,null,null,2450,20]
[null,null,null,null,null,null,null,null,null,null,null,null,null,null,null,null,null,null,null,2460,20]
[null,null,null,null,null,null,null,null,null,null,null,null,null,null,null,null,null,null,null,2470,20]
[null,null,null,null,null,null,null,null,null,null,null,null,null,null,null,null,null,null,null,2480,20]
[null,null,null,null,null,null,null,null,null,null,null,null,null,null,null,null,null,null,null,2490,20]
[null,null,null,null,null,null,null,null,null,null,null,null,null,null,null,null,null,null,null,2500,21]
[null,null,null,null,null,null,null,null,null,null,null,null,null,null,null,null,null,null,null,2510,21]
[null,null,null,null,null,null,null,null,null,null,null,null,null,null,null,null,null,null,null,2520,21]
[null,null,null,null,null,null,null,null,null,null,null,null,null,null,null,null,null,null,null,2530,21]
[null,null,null,null,null,null,null,null,null,null,null,null,null,null,null,null,null,null,null,2540,21]
[null,null,null,null,null,null,null,null,null,null,null,null,null,null,null,null,null,null,null,2550,21]
[null,null,null,null,null,null,null,null,null,null,null,null,null,null,null,null,null,null,null,2560,21]
[null,null,null,null,null,null,null,null,null,null,null,null,null,null,null,null,null,null,null,2570,21]
[null,null,null,null,null,null,null,null,null,null,null,null,null,null,null,null,null,null,null,2580,21]
[null,null,null,null,null,null,null,null,null,null,null,null,null,null,null,null,null,null,null,2590,21]
[null,null,null,null,null,null,null,null,null,null,null,null,null,null,null,null,null,null,null,2600,21]
[null,null,null,null,null,null,null,null,null,null,null,null,null,null,null,null,null,null,null,2610,21]
[null,null,null,null,null,null,null,null,null,null,null,null,null,null,null,null,null,null,null,2620,21]
[null,null,null,null,null,null,null,null,null,null,null,null,null,null,null,null,null,null,null,2630,21]
[null,null,null,null,null,null,null,null,null,null,null,null,null,null,null,null,null,null,null,2640,21]
[null,null,null,null,null,null,null,null,null,null,null,null,null,null,null,null,null,null,null,2650,21]
[null,null,null,null,null,null,null,null,null,null,null,null,null,null,null,null,null,null,null,2660,21]
[null,null,null,null,null,null,null,null,null,null,null,null,null,null,null,null,null,null,null,2670,21]
[null,null,null,null,null,null,null,null,null,null,null,null,null,null,null,null,null,null,null,2680,21]
[null,null,null,null,null,null,null,null,null,null,null,null,null,null,null,null,null,null,null,2690,21]
[null,null,null,null,null,null,null,null,null,null,null,null,null,null,null,null,null,null,null,2700,21]
[null,null,null,null,null,null,null,null,null,null,null,null,null,null,null,null,null,null,null,2710,21]
[null,null,null,null,null,null,null,null,null,null,null,null,null,null,null,null,null,null,null,2720,21]
[null,null,null,null,null,null,null,null,null,null,null,null,null,null,null,null,null,null,null,2730,21]
[null,null,null,null,null,null,null,null,null,null,null,null,null,null,null,null,null,null,null,2740,21]
[null,null,null,null,null,null,null,null,null,null,null,null,null,null,null,null,null,null,null,2750,21]
[null,null,null,null,null,null,null,null,null,null,null,null,null,null,null,null,null,null,null,2760,21]
[null,null,null,null,null,null,null,null,null,null,null,null,null,null,null,null,null,null,null,2770,21]
[null,null,null,null,null,null,null,null,null,null,null,null,null,null,null,null,null,null,null,2780,21]
[null,null,null,null,null,null,null,null,null,null,null,null,null,null,null,null,null,null,null,2790,21]
[null,null,null,null,null,null,null,null,null,null,null,null,null,null,null,null,null,null,null,2800,21]
[null,null,null,null,null,null,null,null,null,null,null,null,null,null,null,null,null,null,null,2810,21]
[null,null,null,null,null,null,null,null,null,null,null,null,null,null,null,null,null,null,null,2820,21]
[null,null,null,null,null,null,null,null,null,null,null,null,null,null,null,null,null,null,null,2830,21]
[null,null,null,null,null,null,null,null,null,null,null,null,null,null,null,null,null,null,null,2840,21]
[null,null,null,null,null,null,null,null,null,null,null,null,null,null,null,null,null,null,null,2850,21]
[null,null,null,null,null,null,null,null,null,null,null,null,null,null,null,null,null,null,null,2860,21]
[null,null,null,null,null,null,null,null,null,null,null,null,null,null,null,null,null,null,null,2870,21]
[null,null,null,null,null,null,null,null,null,null,null,null,null,null,null,null,null,null,null,2880,21]
[null,null,null,null,null,null,null,null,null,null,null,null,null,null,null,null,null,null,null,2890,21]
[null,null,null,null,null,null,null,null,null,null,null,null,null,null,null,null,null,null,null,2900,21]
[null,null,null,null,null,null,null,null,null,null,null,null,null,null,null,null,null,null,null,2910,21]
[null,null,null,null,null,null,null,null,null,null,null,null,null,null,null,null,null,null,null,2920,21]
[null,null,null,null,null,null,null,null,null,null,null,null,null,null,null,null,null,null,null,2930,21]
[null,null,null,null,null,null,null,null,null,null,null,null,null,null,null,null,null,null,null,2940,21]
[null,null,null,null,null,null,null,null,null,null,null,null,null,null,null,null,null,null,null,2950,21]
[null,null,null,null,null,null,null,null,null,null,null,null,null,null,null,null,null,null,null,2960,21]
[null,null,null,null,null,null,null,null,null,null,null,null,null,null,null,null,null,null,null,2970,21]
[null,null,null,null,null,null,null,null,null,null,null,null,null,null,null,null,null,null,null,2980,21]
[null,null,null,null,null,null,null,null,null,null,null,null,null,null,null,null,null,null,null,2990,21]
[null,null,null,null,null,null,null,null,null,null,null,null,null,null,null,null,null,null,null,3000,22]
[null,null,null,null,null,null,null,null,null,null,null,null,null,null,null,null,null,null,null,3010,22]
[null,null,null,null,null,null,null,null,null,null,null,null,null,null,null,null,null,null,null,3020,22]
[null,null,null,null,null,null,null,null,null,null,null,null,null,null,null,null,null,null,null,3030,22]
[null,null,null,null,null,null,null,null,null,null,null,null,null,null,null,null,null,null,null,3040,22]
[null,null,null,null,null,null,null,null,null,null,null,null,null,null,null,null,null,null,null,3050,22]
[null,null,null,null,null,null,null,null,null,null,null,null,null,null,null,null,null,null,null,3060,22]
[null,null,null,null,null,null,null,null,null,null,null,null,null,null,null,null,null,null,null,3070,22]
[null,null,null,null,null,null,null,null,null,null,null,null,null,null,null,null,null,null,null,3080,22]
[null,null,null,null,null,null,null,null,null,null,null,null,null,null,null,null,null,null,null,3090,22]
[null,null,null,null,null,null,null,null,null,null,null,null,null,null,null,null,null,null,null,3100,22]
[null,null,null,null,null,null,null,null,null,null,null,null,null,null,null,null,null,null,null,3110,22]
[null,null,null,null,null,null,null,null,null,null,null,null,null,null,null,null,null,null,null,3120,22]
[null,null,null,null,null,null,null,null,null,null,null,null,null,null,null,null,null,null,null,3130,22]
[null,null,null,null,null,null,null,null,null,null,null,null,null,null,null,null,null,null,null,3140,22]
[null,null,null,null,null,null,null,null,null,null,null,null,null,null,null,null,null,null,null,3150,22]
[null,null,null,null,null,null,null,null,null,null,null,null,null,null,null,null,null,null,null,3160,22]
[null,null,null,null,null,null,null,null,null,null,null,null,null,null,null,null,null,null,null,3170,22]
[null,null,null,null,null,null,null,null,null,null,null,null,null,null,null,null,null,null,null,3180,22]
[null,null,null,null,null,null,null,null,null,null,null,null,null,null,null,null,null,null,null,3190,22]
[null,null,null,null,null,null,null,null,null,null,null,null,null,null,null,null,null,null,null,3200,22]
[null,null,null,null,null,null,null,null,null,null,null,null,null,null,null,null,null,null,null,3210,22]
[null,null,null,null,null,null,null,null,null,null,null,null,null,null,null,null,null,null,null,3220,22]
[null,null,null,null,null,null,null,null,null,null,null,null,null,null,null,null,null,null,null,3230,22]
[null,null,null,null,null,null,null,null,null,null,null,null,null,null,null,null,null,null,null,3240,22]
[null,null,null,null,null,null,null,null,null,null,null,null,null,null,null,null,null,null,null,3250,22]
[null,null,null,null,null,null,null,null,null,null,null,null,null,null,null,null,null,null,null,3260,22]
[null,null,null,null,null,null,null,null,null,null,null,null,null,null,null,null,null,null,null,3270,22]
[null,null,null,null,null,null,null,null,null,null,null,null,null,null,null,null,null,null,null,3280,22]
[null,null,null,null,null,null,null,null,null,null,null,null,null,null,null,null,null,null,null,3290,22]
[null,null,null,null,null,null,null,null,null,null,null,null,null,null,null,null,null,null,null,3300,22]
[null,null,null,null,null,null,null,null,null,null,null,null,null,null,null,null,null,null,null,3310,22]
[null,null,null,null,null,null,null,null,null,null,null,null,null,null,null,null,null,null,null,3320,22]
[null,null,null,null,null,null,null,null,null,null,null,null,null,null,null,null,null,null,null,3330,22]
[null,null,null,null,null,null,null,null,null,null,null,null,null,null,null,null,null,null,null,3340,22]
[null,null,null,null,null,null,null,null,null,null,null,null,null,null,null,null,null,null,null,3350,22]
[null,null,null,null,null,null,null,null,null,null,null,null,null,null,null,null,null,null,null,3360,22]
[null,null,null,null,null,null,null,null,null,null,null,null,null,null,null,null,null,null,null,3370,22]
[null,null,null,null,null,null,null,null,null,null,null,null,null,null,null,null,null,null,null,3380,22]
[null,null,null,null,null,null,null,null,null,null,null,null,null,null,null,null,null,null,null,3390,22]
[null,null,null,null,null,null,null,null,null,null,null,null,null,null,null,null,null,null,null,3400,22]
[null,null,null,null,null,null,null,null,null,null,null,null,null,null,null,null,null,null,null,3410,22]
[null,null,null,null,null,null,null,null,null,null,null,null,null,null,null,null,null,null,null,3420,22]
[null,null,null,null,null,null,null,null,null,null,null,null,null,null,null,null,null,null,null,3430,22]
[null,null,null,null,null,null,null,null,null,null,null,null,null,null,null,null,null,null,null,3440,22]
[null,null,null,null,null,null,null,null,null,null,null,null,null,null,null,null,null,null,null,3450,22]
[null,null,null,null,null,null,null,null,null,null,null,null,null,null,null,null,null,null,null,3460,22]
[null,null,null,null,null,null,null,null,null,null,null,null,null,null,null,null,null,null,null,3470,22]
[null,null,null,null,null,null,null,null,null,null,null,null,null,null,null,null,null,null,null,3480,22]
[null,null,null,null,null,null,null,null,null,null,null,null,null,null,null,null,null,null,null,3490,22]
[null,null,null,null,null,null,null,null,null,null,null,null,null,null,null,null,null,null,null,3500,23]
[null,null,null,null,null,null,null,null,null,null,null,null,null,null,null,null,null,null,null,3510,23]
[null,null,null,null,null,null,null,null,null,null,null,null,null,null,null,null,null,null,null,3520,23]
[null,null,null,null,null,null,null,null,null,null,null,null,null,null,null,null,null,null,null,3530,23]
[null,null,null,null,null,null,null,null,null,null,null,null,null,null,null,null,null,null,null,3540,23]
[null,null,null,null,null,null,null,null,null,null,null,null,null,null,null,null,null,null,null,3550,23]
[null,null,null,null,null,null,null,null,null,null,null,null,null,null,null,null,null,null,null,3560,23]
[null,null,null,null,null,null,null,null,null,null,null,null,null,null,null,null,null,null,null,3570,23]
[null,null,null,null,null,null,null,null,null,null,null,null,null,null,null,null,null,null,null,3580,23]
[null,null,null,null,null,null,null,null,null,null,null,null,null,null,null,null,null,null,null,3590,23]
[null,null,null,null,null,null,null,null,null,null,null,null,null,null,null,null,null,null,null,3600,23]
[null,null,null,null,null,null,null,null,null,null,null,null,null,null,null,null,null,null,null,3610,23]
[null,null,null,null,null,null,null,null,null,null,null,null,null,null,null,null,null,null,null,3620,23]
[null,null,null,null,null,null,null,null,null,null,null,null,null,null,null,null,null,null,null,3630,23]
[null,null,null,null,null,null,null,null,null,null,null,null,null,null,null,null,null,null,null,3640,23]
[null,null,null,null,null,null,null,null,null,null,null,null,null,null,null,null,null,null,null,3650,23]
[null,null,null,null,null,null,null,null,null,null,null,null,null,null,null,null,null,null,null,3660,23]
[null,null,null,null,null,null,null,null,null,null,null,null,null,null,null,null,null,null,null,3670,23]
[null,null,null,null,null,null,null,null,null,null,null,null,null,null,null,null,null,null,null,3680,23]
[null,null,null,null,null,null,null,null,null,null,null,null,null,null,null,null,null,null,null,3690,23]
[null,null,null,null,null,null,null,null,null,null,null,null,null,null,null,null,null,null,null,3700,23]
[null,null,null,null,null,null,null,null,null,null,null,null,null,null,null,null,null,null,null,3710,23]
[null,null,null,null,null,null,null,null,null,null,null,null,null,null,null,null,null,null,null,3720,23]
[null,null,null,null,null,null,null,null,null,null,null,null,null,null,null,null,null,null,null,3730,23]
[null,null,null,null,null,null,null,null,null,null,null,null,null,null,null,null,null,null,null,3740,23]
[null,null,null,null,null,null,null,null,null,null,null,null,null,null,null,null,null,null,null,3750,23]
[null,null,null,null,null,null,null,null,null,null,null,null,null,null,null,null,null,null,null,3760,23]
[null,null,null,null,null,null,null,null,null,null,null,null,null,null,null,null,null,null,null,3770,23]
[null,null,null,null,null,null,null,null,null,null,null,null,null,null,null,null,null,null,null,3780,23]
[null,null,null,null,null,null,null,null,null,null,null,null,null,null,null,null,null,null,null,3790,23]
[null,null,null,null,null,null,null,null,null,null,null,null,null,null,null,null,null,null,null,3800,23]
[null,null,null,null,null,null,null,null,null,null,null,null,null,null,null,null,null,null,null,3810,23]
[null,null,null,null,null,null,null,null,null,null,null,null,null,null,null,null,null,null,null,3820,23]
[null,null,null,null,null,null,null,null,null,null,null,null,null,null,null,null,null,null,null,3830,23]
[null,null,null,null,null,null,null,null,null,null,null,null,null,null,null,null,null,null,null,3840,23]
[null,null,null,null,null,null,null,null,null,null,null,null,null,null,null,null,null,null,null,3850,23]
[null,null,null,null,null,null,null,null,null,null,null,null,null,null,null,null,null,null,null,3860,23]
[null,null,null,null,null,null,null,null,null,null,null,null,null,null,null,null,null,null,null,3870,23]
[null,null,null,null,null,null,null,null,null,null,null,null,null,null,null,null,null,null,null,3880,23]
[null,null,null,null,null,null,null,null,null,null,null,null,null,null,null,null,null,null,null,3890,23]
[null,null,null,null,null,null,null,null,null,null,null,null,null,null,null,null,null,null,null,3900,23]
[null,null,null,null,null,null,null,null,null,null,null,null,null,null,null,null,null,null,null,3910,23]
[null,null,null,null,null,null,null,null,null,null,null,null,null,null,null,null,null,null,null,3920,23]
[null,null,null,null,null,null,null,null,null,null,null,null,null,null,null,null,null,null,null,3930,23]
[null,null,null,null,null,null,null,null,null,null,null,null,null,null,null,null,null,null,null,3940,23]
[null,null,null,null,null,null,null,null,null,null,null,null,null,null,null,null,null,null,null,3950,23]
[null,null,null,null,null,null,null,null,null,null,null,null,null,null,null,null,null,null,null,3960,23]
[null,null,null,null,null,null,null,null,null,null,null,null,null,null,null,null,null,null,null,3970,23]
[null,null,null,null,null,null,null,null,null,null,null,null,null,null,null,null,null,null,null,3980,23]
[null,null,null,null,null,null,null,null,null,null,null,null,null,null,null,null,null,null,null,3990,23]
[null,null,null,null,null,null,null,null,null,null,null,null,null,null,null,null,null,null,null,4000,24]

{"sheet":"TABELLONE 18m","index":1,"n_rows":405,"n_cols":21,"rows_kept":405,"cut":false,"hidden":false,"merged":[[0,3,0,13],[4,10,4,13],[4,4,4,5],[4,2,4,3],[4,6,4,7],[4,8,4,9],[5,6,5,7],[6,6,6,7],[7,6,7,7],[8,6,8,7],[9,6,9,7],[10,6,10,7],[11,6,11,7],[12,6,12,7],[14,6,14,7],[15,6,15,7],[16,6,16,7],[17,6,17,7],[18,6,18,7],[19,6,19,7],[22,6,22,7],[23,6,23,7],[24,6,24,7],[25,6,25,7],[26,6,26,7],[27,6,27,7]]}
[null,null,null,"DUPLICATO a rotazione"]
[null,null,null,"COPPIA 1 ",null,null,null,"COPPIA 3 "]
[null,null,null,"COPPIA 2",null,null,null,"COPPIA 4 "]
[null,null,null,null,null,null,null,null,null,null,null,null,null,null,null,"match points"]
["Turno","Boards","Tavolo 1",null,"Tavolo 2",null,"differenza punti",null,"match point",null,"Punteggio coppie-squadre",null,null,null,null,"0-10",0,null,null,"match points"]
[null,null,"N-S","E-O","N-S","E-O","sq. A +",null,null,null,null,null,null,null,null,"20-40",1,null,null,10,0]
[null,null,"sq. A","sq. B","sq. B","sq. A","sq. B -",null,"sq. A","sq. B",1,2,3,4,null,"50-80",2,null,null,20,1]
[null,1,null,null,null,null,{"$f":"C8+F8-D8-E8","v":0},null,{"$f":"IF(G8>0,INDEX($U$5:$U$404,MATCH(G8,$T$5:$T$404,0)),\"\")","v":""},{"$f":"IF(G8>=0,\"\",INDEX($U$5:$U$404,MATCH(-G8,$T$5:$T$404,0)))","v":""},null,null,null,null,null,"90-120",3,null,null,30,1]
[null,2,null,null,null,null,{"$f":"C9+F9-D9-E9","v":0},null,{"$f":"IF(G9>0,INDEX($U$5:$U$404,MATCH(G9,$T$5:$T$404,0)),\"\")","v":""},"",null,null,null,null,null,"130-160",4,null,null,40,1]
[null,3,null,null,null,null,0,null,"","",null,null,null,null,null,"170-210",5,null,null,50,2]
["I°",4,null,null,null,null,0,null,"","","A","B","B","A",null,"220-260",6,null,null,60,2]
[null,5,null,null,null,null,0,null,"",{"$f":"IF(G12>=0,\"\",INDEX($U$5:$U$404,MATCH(-G12,$T$5:$T$404,0)))","v":""},null,null,null,null,null,"270-310",7,null,null,70,2]
[null,6,null,null,null,null,0,null,"",{"$f":"IF(G13>=0,\"\",INDEX($U$5:$U$404,MATCH(-G13,$T$5:$T$404,0)))","v":""},null,null,null,null,null,"320-360",8,null,null,80,2]
[null,null,"Risultato Turno I°",null,null,null,null,null,{"$f":"SUM(I8:I13)","v":0},{"$f":"SUM(J8:J13)","v":0},{"$f":"I14","v":0},{"$f":"J14","v":0},{"$f":"J14","v":0},{"$f":"I14","v":0},null,"370-420",9,null,null,90,3]
[null,1,null,null,null,null,{"$f":"C15+F15-D15-E15","v":0},null,{"$f":"IF(G15>0,INDEX($U$5:$U$404,MATCH(G15,$T$5:$T$404,0)),\"\")","v":""},{"$f":"IF(G15>=0,\"\",INDEX($U$5:$U$404,MATCH(-G15,$T$5:$T$404,0)))","v":""},null,null,null,null,null,"430-490",10,null,null,100,3]
[null,2,null,null,null,null,{"$f":"C16+F16-D16-E16","v":0},null,{"$f":"IF(G16>0,INDEX($U$5:$U$404,MATCH(G16,$T$5:$T$404,0)),\"\")","v":""},"",null,null,null,null,null,"500-590",11,null,null,110,3]
[null,3,null,null,null,null,0,null,"","",null,null,null,null,null,"600-740",12,null,null,120,3]
["II°",4,null,null,null,null,{"$f":"C18+F18-D18-E18","v":0},null,"","","A","B","A","B",null,"750-890",13,null,null,130,4]
[null,5,null,null,null,null,0,null,"","",null,null,null,null,null,"900-1090",14,null,null,140,4]
[null,6,null,null,null,null,0,null,"","",null,null,null,null,null,"110-1290",15,null,null,150,4]
[null,null,"Risultato Turno II°",null,null,null,null,null,{"$f":"SUM(I15:I20)","v":0},{"$f":"SUM(J15:J20)","v":0},{"$f":"I21","v":0},{"$f":"J21","v":0},{"$f":"I21","v":0},{"$f":"J21","v":0},null,"1300-1490",16,null,null,160,4]
[null,null,"Risultato I° + II° Turno",null,null,null,null,null,null,null,{"$f":"K14+K21","v":0},{"$f":"L14+L21","v":0},{"$f":"M14+M21","v":0},{"$f":"N14+N21","v":0},null,"1500-1740",17,null,null,170,5]
[null,1,null,null,null,null,{"$f":"C23+F23-D23-E23","v":0},null,{"$f":"IF(G23>0,INDEX($U$5:$U$404,MATCH(G23,$T$5:$T$404,0)),\"\")","v":""},{"$f":"IF(G23>=0,\"\",INDEX($U$5:$U$404,MATCH(-G23,$T$5:$T$404,0)))","v":""},null,null,null,null,null,"1750-1990",18,null,null,180,5]
[null,2,null,null,null,null,{"$f":"C24+F24-D24-E24","v":0},null,{"$f":"IF(G24>0,INDEX($U$5:$U$404,MATCH(G24,$T$5:$T$404,0)),\"\")","v":""},"",null,null,null,null,null,"2000-2240",19,null,null,190,5]
[null,3,null,null,null,null,0,null,"","",null,null,null,null,null,"2250-2490",20,null,null,200,5]
["III°",4,null,null,null,null,0,null,"","","A","A","B","B",null,"2500-2990",21,null,null,210,5]
[null,5,null,null,null,null,0,null,"","",null,null,null,null,null,"3000-3490",22,null,null,220,6]
[null,6,null,null,null,null,0,null,"","",null,null,null,null,null,"3500-3990",23,null,null,230,6]
[null,null,"Risultato Turno III°",null,null,null,null,null,{"$f":"SUM(I23:I28)","v":0},{"$f":"SUM(J23:J28)","v":0},{"$f":"I29","v":0},{"$f":"I29","v":0},{"$f":"J29","v":0},{"$f":"J29","v":0},null,"4000-",24,null,null,240,6]
[null,null,"Risultato Finale",null,null,null,null,null,null,null,{"$f":"K22+K29","v":0},{"$f":"L22+L29","v":0},{"$f":"M22+M29","v":0},{"$f":"N22+N29","v":0},null,null,null,null,null,250,6]
[null,null,null,null,null,null,null,null,null,null,null,null,null,null,null,null,null,null,null,260,6]
[null,null,null,null,null,null,null,null,null,null,null,null,null,null,null,null,null,null,null,270,7]
[null,null,null,null,null,null,null,null,null,null,null,null,null,null,null,null,null,null,null,280,7]
[null,null,null,null,null,null,null,null,null,null,null,null,null,null,null,null,null,null,null,290,7]
[null,null,null,null,null,null,null,null,null,null,null,null,null,null,null,null,null,null,null,300,7]
[null,null,null,null,null,null,null,null,null,null,null,null,null,null,null,null,null,null,null,310,7]
[null,null,null,null,null,null,null,null,null,null,null,null,null,null,null,null,null,null,null,320,8]
[null,null,null,null,null,null,null,null,null,null,null,null,null,null,null,null,null,null,null,330,8]
[null,null,null,null,null,null,null,null,null,null,null,null,null,null,null,null,null,null,null,340,8]
[null,null,null,null,null,null,null,null,null,null,null,null,null,null,null,null,null,null,null,350,8]
[null,null,null,null,null,null,null,null,null,null,null,null,null,null,null,null,null,null,null,360,8]
[null,null,null,null,null,null,null,null,null,null,null,null,null,null,null,null,null,null,null,370,9]
[null,null,null,null,null,null,null,null,null,null,null,null,null,null,null,null,null,null,null,380,9]
[null,null,null,null,null,null,null,null,null,null,null,null,null,null,null,null,null,null,null,390,9]
[null,null,null,null,null,null,null,null,null,null,null,null,null,null,null,null,null,null,null,400,9]
[null,null,null,null,null,null,null,null,null,null,null,null,null,null,null,null,null,null,null,410,9]
[null,null,null,null,null,null,null,null,null,null,null,null,null,null,null,null,null,null,null,420,9]
[null,null,null,null,null,null,null,null,null,null,null,null,null,null,null,null,null,null,null,430,10]
[null,null,null,null,null,null,null,null,null,null,null,null,null,null,null,null,null,null,null,440,10]
[null,null,null,null,null,null,null,null,null,null,null,null,null,null,null,null,null,null,null,450,10]
[null,null,null,null,null,null,null,null,null,null,null,null,null,null,null,null,null,null,null,460,10]
[null,null,null,null,null,null,null,null,null,null,null,null,null,null,null,null,null,null,null,470,10]
[null,null,null,null,null,null,null,null,null,null,null,null,null,null,null,null,null,null,null,480,10]
[null,null,null,null,null,null,null,null,null,null,null,null,null,null,null,null,null,null,null,490,10]
[null,null,null,null,null,null,null,null,null,null,null,null,null,null,null,null,null,null,null,500,11]
[null,null,null,null,null,null,null,null,null,null,null,null,null,null,null,null,null,null,null,510,11]
[null,null,null,null,null,null,null,null,null,null,null,null,null,null,null,null,null,null,null,520,11]
[null,null,null,null,null,null,null,null,null,null,null,null,null,null,null,null,null,null,null,530,11]
[null,null,null,null,null,null,null,null,null,null,null,null,null,null,null,null,null,null,null,540,11]
[null,null,null,null,null,null,null,null,null,null,null,null,null,null,null,null,null,null,null,550,11]
[null,null,null,null,null,null,null,null,null,null,null,null,null,null,null,null,null,null,null,560,11]
[null,null,null,null,null,null,null,null,null,null,null,null,null,null,null,null,null,null,null,570,11]
[null,null,null,null,null,null,null,null,null,null,null,null,null,null,null,null,null,null,null,580,11]
[null,null,null,null,null,null,null,null,null,null,null,null,null,null,null,null,null,null,null,590,11]
[null,null,null,null,null,null,null,null,null,null,null,null,null,null,null,null,null,null,null,600,12]
[null,null,null,null,null,null,null,null,null,null,null,null,null,null,null,null,null,null,null,610,12]
[null,null,null,null,null,null,null,null,null,null,null,null,null,null,null,null,null,null,null,620,12]
[null,null,null,null,null,null,null,null,null,null,null,null,null,null,null,null,null,null,null,630,12]
[null,null,null,null,null,null,null,null,null,null,null,null,null,null,null,null,null,null,null,640,12]
[null,null,null,null,null,null,null,null,null,null,null,null,null,null,null,null,null,null,null,650,12]
[null,null,null,null,null,null,null,null,null,null,null,null,null,null,null,null,null,null,null,660,12]
[null,null,null,null,null,null,null,null,null,null,null,null,null,null,null,null,null,null,null,670,12]
[null,null,null,null,null,null,null,null,null,null,null,null,null,null,null,null,null,null,null,680,12]
[null,null,null,null,null,null,null,null,null,null,null,null,null,null,null,null,null,null,null,690,12]
[null,null,null,null,null,null,null,null,null,null,null,null,null,null,null,null,null,null,null,700,12]
[null,null,null,null,null,null,null,null,null,null,null,null,null,null,null,null,null,null,null,710,12]
[null,null,null,null,null,null,null,null,null,null,null,null,null,null,null,null,null,null,null,720,12]
[null,null,null,null,null,null,null,null,null,null,null,null,null,null,null,null,null,null,null,730,12]
[null,null,null,null,null,null,null,null,null,null,null,null,null,null,null,null,null,null,null,740,12]
[null,null,null,null,null,null,null,null,null,null,null,null,null,null,null,null,null,null,null,750,13]
[null,null,null,null,null,null,null,null,null,null,null,null,null,null,null,null,null,null,null,760,13]
[null,null,null,null,null,null,null,null,null,null,null,null,null,null,null,null,null,null,null,770,13]
[null,null,null,null,null,null,null,null,null,null,null,null,null,null,null,null,null,null,null,780,13]
[null,null,null,null,null,null,null,null,null,null,null,null,null,null,null,null,null,null,null,790,13]
[null,null,null,null,null,null,null,null,null,null,null,null,null,null,null,null,null,null,null,800,13]
[null,null,null,null,null,null,null,null,null,null,null,null,null,null,null,null,null,null,null,810,13]
[null,null,null,null,null,null,null,null,null,null,null,null,null,null,null,null,null,null,null,820,13]
[null,null,null,null,null,null,null,null,null,null,null,null,null,null,null,null,null,null,null,830,13]
[null,null,null,null,null,null,null,null,null,null,null,null,null,null,null,null,null,null,null,840,13]
[null,null,null,null,null,null,null,null,null,null,null,null,null,null,null,null,null,null,null,850,13]
[null,null,null,null,null,null,null,null,null,null,null,null,null,null,null,null,null,null,null,860,13]
[null,null,null,null,null,null,null,null,null,null,null,null,null,null,null,null,null,null,null,870,13]
[null,null,null,null,null,null,null,null,null,null,null,null,null,null,null,null,null,null,null,880,13]
[null,null,null,null,null,null,null,null,null,null,null,null,null,null,null,null,null,null,null,890,13]
[null,null,null,null,null,null,null,null,null,null,null,null,null,null,null,null,null,null,null,900,14]
[null,null,null,null,null,null,null,null,null,null,null,null,null,null,null,null,null,null,null,910,14]
[null,null,null,null,null,null,null,null,null,null,null,null,null,null,null,null,null,null,null,920,14]
[null,null,null,null,null,null,null,null,null,null,null,null,null,null,null,null,null,null,null,930,14]
[null,null,null,null,null,null,null,null,null,null,null,null,null,null,null,null,null,null,null,940,14]
[null,null,null,null,null,null,null,null,null,null,null,null,null,null,null,null,null,null,null,950,14]
[null,null,null,null,null,null,null,null,null,null,null,null,null,null,null,null,null,null,null,960,14]
[null,null,null,null,null,null,null,null,null,null,null,null,null,null,null,null,null,null,null,970,14]
[null,null,null,null,null,null,null,null,null,null,null,null,null,null,null,null,null,null,null,980,14]
[null,null,null,null,null,null,null,null,null,null,null,null,null,null,null,null,null,null,null,990,14]
[null,null,null,null,null,null,null,null,null,null,null,null,null,null,null,null,null,null,null,1000,14]
[null,null,null,null,null,null,null,null,null,null,null,null,null,null,null,null,null,null,null,1010,14]
[null,null,null,null,null,null,null,null,null,null,null,null,null,null,null,null,null,null,null,1020,14]
[null,null,null,null,null,null,null,null,null,null,null,null,null,null,null,null,null,null,null,1030,14]
[null,null,null,null,null,null,null,null,null,null,null,null,null,null,null,null,null,null,null,1040,14]
[null,null,null,null,null,null,null,null,null,null,null,null,null,null,null,null,null,null,null,1050,14]
[null,null,null,null,null,null,null,null,null,null,null,null,null,null,null,null,null,null,null,1060,14]
[null,null,null,null,null,null,null,null,null,null,null,null,null,null,null,null,null,null,null,1070,14]
[null,null,null,null,null,null,null,null,null,null,null,null,null,null,null,null,null,null,null,1080,14]
[null,null,null,null,null,null,null,null,null,null,null,null,null,null,null,null,null,null,null,1090,14]
[null,null,null,null,null,null,null,null,null,null,null,null,null,null,null,null,null,null,null,1100,15]
[null,null,null,null,null,null,null,null,null,null,null,null,null,null,null,null,null,null,null,1110,15]
[null,null,null,null,null,null,null,null,null,null,null,null,null,null,null,null,null,null,null,1120,15]
[null,null,null,null,null,null,null,null,null,null,null,null,null,null,null,null,null,null,null,1130,15]
[null,null,null,null,null,null,null,null,null,null,null,null,null,null,null,null,null,null,null,1140,15]
[null,null,null,null,null,null,null,null,null,null,null,null,null,null,null,null,null,null,null,1150,15]
[null,null,null,null,null,null,null,null,null,null,null,null,null,null,null,null,null,null,null,1160,15]
[null,null,null,null,null,null,null,null,null,null,null,null,null,null,null,null,null,null,null,1170,15]
[null,null,null,null,null,null,null,null,null,null,null,null,null,null,null,null,null,null,null,1180,15]
[null,null,null,null,null,null,null,null,null,null,null,null,null,null,null,null,null,null,null,1190,15]
[null,null,null,null,null,null,null,null,null,null,null,null,null,null,null,null,null,null,null,1200,15]
[null,null,null,null,null,null,null,null,null,null,null,null,null,null,null,null,null,null,null,1210,15]
[null,null,null,null,null,null,null,null,null,null,null,null,null,null,null,null,null,null,null,1220,15]
[null,null,null,null,null,null,null,null,null,null,null,null,null,null,null,null,null,null,null,1230,15]
[null,null,null,null,null,null,null,null,null,null,null,null,null,null,null,null,null,null,null,1240,15]
[null,null,null,null,null,null,null,null,null,null,null,null,null,null,null,null,null,null,null,1250,15]
[null,null,null,null,null,null,null,null,null,null,null,null,null,null,null,null,null,null,null,1260,15]
[null,null,null,null,null,null,null,null,null,null,null,null,null,null,null,null,null,null,null,1270,15]
[null,null,null,null,null,null,null,null,null,null,null,null,null,null,null,null,null,null,null,1280,15]
[null,null,null,null,null,null,null,null,null,null,null,null,null,null,null,null,null,null,null,1290,15]
[null,null,null,null,null,null,null,null,null,null,null,null,null,null,null,null,null,null,null,1300,16]
[null,null,null,null,null,null,null,null,null,null,null,null,null,null,null,null,null,null,null,1310,16]
[null,null,null,null,null,null,null,null,null,null,null,null,null,null,null,null,null,null,null,1320,16]
[null,null,null,null,null,null,null,null,null,null,null,null,null,null,null,null,null,null,null,1330,16]
[null,null,null,null,null,null,null,null,null,null,null,null,null,null,null,null,null,null,null,1340,16]
[null,null,null,null,null,null,null,null,null,null,null,null,null,null,null,null,null,null,null,1350,16]
[null,null,null,null,null,null,null,null,null,null,null,null,null,null,null,null,null,null,null,1360,16]
[null,null,null,null,null,null,null,null,null,null,null,null,null,null,null,null,null,null,null,1370,16]
[null,null,null,null,null,null,null,null,null,null,null,null,null,null,null,null,null,null,null,1380,16]
[null,null,null,null,null,null,null,null,null,null,null,null,null,null,null,null,null,null,null,1390,16]
[null,null,null,null,null,null,null,null,null,null,null,null,null,null,null,null,null,null,null,1400,16]
[null,null,null,null,null,null,null,null,null,null,null,null,null,null,null,null,null,null,null,1410,16]
[null,null,null,null,null,null,null,null,null,null,null,null,null,null,null,null,null,null,null,1420,16]
[null,null,null,null,null,null,null,null,null,null,null,null,null,null,null,null,null,null,null,1430,16]
[null,null,null,null,null,null,null,null,null,null,null,null,null,null,null,null,null,null,null,1440,16]
[null,null,null,null,null,null,null,null,null,null,null,null,null,null,null,null,null,null,null,1450,16]
[null,null,null,null,null,null,null,null,null,null,null,null,null,null,null,null,null,null,null,1460,16]
[null,null,null,null,null,null,null,null,null,null,null,null,null,null,null,null,null,null,null,1470,16]
[null,null,null,null,null,null,null,null,null,null,null,null,null,null,null,null,null,null,null,1480,16]
[null,null,null,null,null,null,null,null,null,null,null,null,null,null,null,null,null,null,null,1490,16]
[null,null,null,null,null,null,null,null,null,null,null,null,null,null,null,null,null,null,null,1500,17]
[null,null,null,null,null,null,null,null,null,null,null,null,null,null,null,null,null,null,null,1510,17]
[null,null,null,null,null,null,null,null,null,null,null,null,null,null,null,null,null,null,null,1520,17]
[null,null,null,null,null,null,null,null,null,null,null,null,null,null,null,null,null,null,null,1530,17]
[null,null,null,null,null,null,null,null,null,null,null,null,null,null,null,null,null,null,null,1540,17]
[null,null,null,null,null,null,null,null,null,null,null,null,null,null,null,null,null,null,null,1550,17]
[null,null,null,null,null,null,null,null,null,null,null,null,null,null,null,null,null,null,null,1560,17]
[null,null,null,null,null,null,null,null,null,null,null,null,null,null,null,null,null,null,null,1570,17]
[null,null,null,null,null,null,null,null,null,null,null,null,null,null,null,null,null,null,null,1580,17]
[null,null,null,null,null,null,null,null,null,null,null,null,null,null,null,null,null,null,null,1590,17]
[null,null,null,null,null,null,null,null,null,null,null,null,null,null,null,null,null,null,null,1600,17]
[null,null,null,null,null,null,null,null,null,null,null,null,null,null,null,null,null,null,null,1610,17]
[null,null,null,null,null,null,null,null,null,null,null,null,null,null,null,null,null,null,null,1620,17]
[null,null,null,null,null,null,null,null,null,null,null,null,null,null,null,null,null,null,null,1630,17]
[null,null,null,null,null,null,null,null,null,null,null,null,null,null,null,null,null,null,null,1640,17]
[null,null,null,null,null,null,null,null,null,null,null,null,null,null,null,null,null,null,null,1650,17]
[null,null,null,null,null,null,null,null,null,null,null,null,null,null,null,null,null,null,null,1660,17]
[null,null,null,null,null,null,null,null,null,null,null,null,null,null,null,null,null,null,null,1670,17]
[null,null,null,null,null,null,null,null,null,null,null,null,null,null,null,null,null,null,null,1680,17]
[null,null,null,null,null,null,null,null,null,null,null,null,null,null,null,null,null,null,null,1690,17]
[null,null,null,null,null,null,null,null,null,null,null,null,null,null,null,null,null,null,null,1700,17]
[null,null,null,null,null,null,null,null,null,null,null,null,null,null,null,null,null,null,null,1710,17]
[null,null,null,null,null,null,null,null,null,null,null,null,null,null,null,null,null,null,null,1720,17]
[null,null,null,null,null,null,null,null,null,null,null,null,null,null,null,null,null,null,null,1730,17]
[null,null,null,null,null,null,null,null,null,null,null,null,null,null,null,null,null,null,null,1740,17]
[null,null,null,null,null,null,null,null,null,null,null,null,null,null,null,null,null,null,null,1750,18]
[null,null,null,null,null,null,null,null,null,null,null,null,null,null,null,null,null,null,null,1760,18]
[null,null,null,null,null,null,null,null,null,null,null,null,null,null,null,null,null,null,null,1770,18]
[null,null,null,null,null,null,null,null,null,null,null,null,null,null,null,null,null,null,null,1780,18]
[null,null,null,null,null,null,null,null,null,null,null,null,null,null,null,null,null,null,null,1790,18]
[null,null,null,null,null,null,null,null,null,null,null,null,null,null,null,null,null,null,null,1800,18]
[null,null,null,null,null,null,null,null,null,null,null,null,null,null,null,null,null,null,null,1810,18]
[null,null,null,null,null,null,null,null,null,null,null,null,null,null,null,null,null,null,null,1820,18]
[null,null,null,null,null,null,null,null,null,null,null,null,null,null,null,null,null,null,null,1830,18]
[null,null,null,null,null,null,null,null,null,null,null,null,null,null,null,null,null,null,null,1840,18]
[null,null,null,null,null,null,null,null,null,null,null,null,null,null,null,null,null,null,null,1850,18]
[null,null,null,null,null,null,null,null,null,null,null,null,null,null,null,null,null,null,null,1860,18]
[null,null,null,null,null,null,null,null,null,null,null,null,null,null,null,null,null,null,null,1870,18]
[null,null,null,null,null,null,null,null,null,null,null,null,null,null,null,null,null,null,null,1880,18]
[null,null,null,null,null,null,null,null,null,null,null,null,null,null,null,null,null,null,null,1890,18]
[null,null,null,null,null,null,null,null,null,null,null,null,null,null,null,null,null,null,null,1900,18]
[null,null,null,null,null,null,null,null,null,null,null,null,null,null,null,null,null,null,null,1910,18]
[null,null,null,null,null,null,null,null,null,null,null,null,null,null,null,null,null,null,null,1920,18]
[null,null,null,null,null,null,null,null,null,null,null,null,null,null,null,null,null,null,null,1930,18]
[null,null,null,null,null,null,null,null,null,null,null,null,null,null,null,null,null,null,null,1940,18]
[null,null,null,null,null,null,null,null,null,null,null,null,null,null,null,null,null,null,null,1950,18]
[null,null,null,null,null,null,null,null,null,null,null,null,null,null,null,null,null,null,null,1960,18]
[null,null,null,null,null,null,null,null,null,null,null,null,null,null,null,null,null,null,null,1970,18]
[null,null,null,null,null,null,null,null,null,null,null,null,null,null,null,null,null,null,null,1980,18]
[null,null,null,null,null,null,null,null,null,null,null,null,null,null,null,null,null,null,null,1990,18]
[null,null,null,null,null,null,null,null,null,null,null,null,null,null,null,null,null,null,null,2000,19]
[null,null,null,null,null,null,null,null,null,null,null,null,null,null,null,null,null,null,null,2010,19]
[null,null,null,null,null,null,null,null,null,null,null,null,null,null,null,null,null,null,null,2020,19]
[null,null,null,null,null,null,null,null,null,null,null,null,null,null,null,null,null,null,null,2030,19]
[null,null,null,null,null,null,null,null,null,null,null,null,null,null,null,null,null,null,null,2040,19]
[null,null,null,null,null,null,null,null,null,null,null,null,null,null,null,null,null,null,null,2050,19]
[null,null,null,null,null,null,null,null,null,null,null,null,null,null,null,null,null,null,null,2060,19]
[null,null,null,null,null,null,null,null,null,null,null,null,null,null,null,null,null,null,null,2070,19]
[null,null,null,null,null,null,null,null,null,null,null,null,null,null,null,null,null,null,null,2080,19]
[null,null,null,null,null,null,null,null,null,null,null,null,null,null,null,null,null,null,null,2090,19]
[null,null,null,null,null,null,null,null,null,null,null,null,null,null,null,null,null,null,null,2100,19]
[null,null,null,null,null,null,null,null,null,null,null,null,null,null,null,null,null,null,null,2110,19]
[null,null,null,null,null,null,null,null,null,null,null,null,null,null,null,null,null,null,null,2120,19]
[null,null,null,null,null,null,null,null,null,null,null,null,null,null,null,null,null,null,null,2130,19]
[null,null,null,null,null,null,null,null,null,null,null,null,null,null,null,null,null,null,null,2140,19]
[null,null,null,null,null,null,null,null,null,null,null,null,null,null,null,null,null,null,null,2150,19]
[null,null,null,null,null,null,null,null,null,null,null,null,null,null,null,null,null,null,null,2160,19]
[null,null,null,null,null,null,null,null,null,null,null,null,null,null,null,null,null,null,null,2170,19]
[null,null,null,null,null,null,null,null,null,null,null,null,null,null,null,null,null,null,null,2180,19]
[null,null,null,null,null,null,null,null,null,null,null,null,null,null,null,null,null,null,null,2190,19]
[null,null,null,null,null,null,null,null,null,null,null,null,null,null,null,null,null,null,null,2200,19]
[null,null,null,null,null,null,null,null,null,null,null,null,null,null,null,null,null,null,null,2210,19]
[null,null,null,null,null,null,null,null,null,null,null,null,null,null,null,null,null,null,null,2220,19]
[null,null,null,null,null,null,null,null,null,null,null,null,null,null,null,null,null,null,null,2230,19]
[null,null,null,null,null,null,null,null,null,null,null,null,null,null,null,null,null,null,null,2240,19]
[null,null,null,null,null,null,null,null,null,null,null,null,null,null,null,null,null,null,null,2250,20]
[null,null,null,null,null,null,null,null,null,null,null,null,null,null,null,null,null,null,null,2260,20]
[null,null,null,null,null,null,null,null,null,null,null,null,null,null,null,null,null,null,null,2270,20]
[null,null,null,null,null,null,null,null,null,null,null,null,null,null,null,null,null,null,null,2280,20]
[null,null,null,null,null,null,null,null,null,null,null,null,null,null,null,null,null,null,null,2290,20]
[null,null,null,null,null,null,null,null,null,null,null,null,null,null,null,null,null,null,null,2300,20]
[null,null,null,null,null,null,null,null,null,null,null,null,null,null,null,null,null,null,null,2310,20]
[null,null,null,null,null,null,null,null,null,null,null,null,null,null,null,null,null,null,null,2320,20]
[null,null,null,null,null,null,null,null,null,null,null,null,null,null,null,null,null,null,null,2330,20]
[null,null,null,null,null,null,null,null,null,null,null,null,null,null,null,null,null,null,null,2340,20]
[null,null,null,null,null,null,null,null,null,null,null,null,null,null,null,null,null,null,null,2350,20]
[null,null,null,null,null,null,null,null,null,null,null,null,null,null,null,null,null,null,null,2360,20]
[null,null,null,null,null,null,null,null,null,null,null,null,null,null,null,null,null,null,null,2370,20]
[null,null,null,null,null,null,null,null,null,null,null,null,null,null,null,null,null,null,null,2380,20]
[null,null,null,null,null,null,null,null,null,null,null,null,null,null,null,null,null,null,null,2390,20]
[null,null,null,null,null,null,null,null,null,null,null,null,null,null,null,null,null,null,null,2400,20]
[null,null,null,null,null,null,null,null,null,null,null,null,null,null,null,null,null,null,null,2410,20]
[null,null,null,null,null,null,null,null,null,null,null,null,null,null,null,null,null,null,null,2420,20]
[null,null,null,null,null,null,null,null,null,null,null,null,null,null,null,null,null,null,null,2430,20]
[null,null,null,null,null,null,null,null,null,null,null,null,null,null,null,null,null,null,null,2440,20]
[null,null,null,null,null,null,null,null,null,null,null,null,null,null,null,null,null,null,null,2450,20]
[null,null,null,null,null,null,null,null,null,null,null,null,null,null,null,null,null,null,null,2460,20]
[null,null,null,null,null,null,null,null,null,null,null,null,null,null,null,null,null,null,null,2470,20]
[null,null,null,null,null,null,null,null,null,null,null,null,null,null,null,null,null,null,null,2480,20]
[null,null,null,null,null,null,null,null,null,null,null,null,null,null,null,null,null,null,null,2490,20]
[null,null,null,null,null,null,null,null,null,null,null,null,null,null,null,null,null,null,null,2500,21]
[null,null,null,null,null,null,null,null,null,null,null,null,null,null,null,null,null,null,null,2510,21]
[null,null,null,null,null,null,null,null,null,null,null,null,null,null,null,null,null,null,null,2520,21]
[null,null,null,null,null,null,null,null,null,null,null,null,null,null,null,null,null,null,null,2530,21]
[null,null,null,null,null,null,null,null,null,null,null,null,null,null,null,null,null,null,null,2540,21]
[null,null,null,null,null,null,null,null,null,null,null,null,null,null,null,null,null,null,null,2550,21]
[null,null,null,null,null,null,null,null,null,null,null,null,null,null,null,null,null,null,null,2560,21]
[null,null,null,null,null,null,null,null,null,null,null,null,null,null,null,null,null,null,null,2570,21]
[null,null,null,null,null,null,null,null,null,null,null,null,null,null,null,null,null,null,null,2580,21]
[null,null,null,null,null,null,null,null,null,null,null,null,null,null,null,null,null,null,null,2590,21]
[null,null,null,null,null,null,null,null,null,null,null,null,null,null,null,null,null,null,null,2600,21]
[null,null,null,null,null,null,null,null,null,null,null,null,null,null,null,null,null,null,null,2610,21]
[null,null,null,null,null,null,null,null,null,null,null,null,null,null,null,null,null,null,null,2620,21]
[null,null,null,null,null,null,null,null,null,null,null,null,null,null,null,null,null,null,null,2630,21]
[null,null,null,null,null,null,null,null,null,null,null,null,null,null,null,null,null,null,null,2640,21]
[null,null,null,null,null,null,null,null,null,null,null,null,null,null,null,null,null,null,null,2650,21]
[null,null,null,null,null,null,null,null,null,null,null,null,null,null,null,null,null,null,null,2660,21]
[null,null,null,null,null,null,null,null,null,null,null,null,null,null,null,null,null,null,null,2670,21]
[null,null,null,null,null,null,null,null,null,null,null,null,null,null,null,null,null,null,null,2680,21]
[null,null,null,null,null,null,null,null,null,null,null,null,null,null,null,null,null,null,null,2690,21]
[null,null,null,null,null,null,null,null,null,null,null,null,null,null,null,null,null,null,null,2700,21]
[null,null,null,null,null,null,null,null,null,null,null,null,null,null,null,null,null,null,null,2710,21]
[null,null,null,null,null,null,null,null,null,null,null,null,null,null,null,null,null,null,null,2720,21]
[null,null,null,null,null,null,null,null,null,null,null,null,null,null,null,null,null,null,null,2730,21]
[null,null,null,null,null,null,null,null,null,null,null,null,null,null,null,null,null,null,null,2740,21]
[null,null,null,null,null,null,null,null,null,null,null,null,null,null,null,null,null,null,null,2750,21]
[null,null,null,null,null,null,null,null,null,null,null,null,null,null,null,null,null,null,null,2760,21]
[null,null,null,null,null,null,null,null,null,null,null,null,null,null,null,null,null,null,null,2770,21]
[null,null,null,null,null,null,null,null,null,null,null,null,null,null,null,null,null,null,null,2780,21]
[null,null,null,null,null,null,null,null,null,null,null,null,null,null,null,null,null,null,null,2790,21]
[null,null,null,null,null,null,null,null,null,null,null,null,null,null,null,null,null,null,null,2800,21]
[null,null,null,null,null,null,null,null,null,null,null,null,null,null,null,null,null,null,null,2810,21]
[null,null,null,null,null,null,null,null,null,null,null,null,null,null,null,null,null,null,null,2820,21]
[null,null,null,null,null,null,null,null,null,null,null,null,null,null,null,null,null,null,null,2830,21]
[null,null,null,null,null,null,null,null,null,null,null,null,null,null,null,null,null,null,null,2840,21]
[null,null,null,null,null,null,null,null,null,null,null,null,null,null,null,null,null,null,null,2850,21]
[null,null,null,null,null,null,null,null,null,null,null,null,null,null,null,null,null,null,null,2860,21]
[null,null,null,null,null,null,null,null,null,null,null,null,null,null,null,null,null,null,null,2870,21]
[null,null,null,null,null,null,null,null,null,null,null,null,null,null,null,null,null,null,null,2880,21]
[null,null,null,null,null,null,null,null,null,null,null,null,null,null,null,null,null,null,null,2890,21]
[null,null,null,null,null,null,null,null,null,null,null,null,null,null,null,null,null,null,null,2900,21]
[null,null,null,null,null,null,null,null,null,null,null,null,null,null,null,null,null,null,null,2910,21]
[null,null,null,null,null,null,null,null,null,null,null,null,null,null,null,null,null,null,null,2920,21]
[null,null,null,null,null,null,null,null,null,null,null,null,null,null,null,null,null,null,null,2930,21]
[null,null,null,null,null,null,null,null,null,null,null,null,null,null,null,null,null,null,null,2940,21]
[null,null,null,null,null,null,null,null,null,null,null,null,null,null,null,null,null,null,null,2950,21]
[null,null,null,null,null,null,null,null,null,null,null,null,null,null,null,null,null,null,null,2960,21]
[null,null,null,null,null,null,null,null,null,null,null,null,null,null,null,null,null,null,null,2970,21]
[null,null,null,null,null,null,null,null,null,null,null,null,null,null,null,null,null,null,null,2980,21]
[null,null,null,null,null,null,null,null,null,null,null,null,null,null,null,null,null,null,null,2990,21]
[null,null,null,null,null,null,null,null,null,null,null,null,null,null,null,null,null,null,null,3000,22]
[null,null,null,null,null,null,null,null,null,null,null,null,null,null,null,null,null,null,null,3010,22]
[null,null,null,null,null,null,null,null,null,null,null,null,null,null,null,null,null,null,null,3020,22]
[null,null,null,null,null,null,null,null,null,null,null,null,null,null,null,null,null,null,null,3030,22]
[null,null,null,null,null,null,null,null,null,null,null,null,null,null,null,null,null,null,null,3040,22]
[null,null,null,null,null,null,null,null,null,null,null,null,null,null,null,null,null,null,null,3050,22]
[null,null,null,null,null,null,null,null,null,null,null,null,null,null,null,null,null,null,null,3060,22]
[null,null,null,null,null,null,null,null,null,null,null,null,null,null,null,null,null,null,null,3070,22]
[null,null,null,null,null,null,null,null,null,null,null,null,null,null,null,null,null,null,null,3080,22]
[null,null,null,null,null,null,null,null,null,null,null,null,null,null,null,null,null,null,null,3090,22]
[null,null,null,null,null,null,null,null,null,null,null,null,null,null,null,null,null,null,null,3100,22]
[null,null,null,null,null,null,null,null,null,null,null,null,null,null,null,null,null,null,null,3110,22]
[null,null,null,null,null,null,null,null,null,null,null,null,null,null,null,null,null,null,null,3120,22]
[null,null,null,null,null,null,null,null,null,null,null,null,null,null,null,null,null,null,null,3130,22]
[null,null,null,null,null,null,null,null,null,null,null,null,null,null,null,null,null,null,null,3140,22]
[null,null,null,null,null,null,null,null,null,null,null,null,null,null,null,null,null,null,null,3150,22]
[null,null,null,null,null,null,null,null,null,null,null,null,null,null,null,null,null,null,null,3160,22]
[null,null,null,null,null,null,null,null,null,null,null,null,null,null,null,null,null,null,null,3170,22]
[null,null,null,null,null,null,null,null,null,null,null,null,null,null,null,null,null,null,null,3180,22]
[null,null,null,null,null,null,null,null,null,null,null,null,null,null,null,null,null,null,null,3190,22]
[null,null,null,null,null,null,null,null,null,null,null,null,null,null,null,null,null,null,null,3200,22]
[null,null,null,null,null,null,null,null,null,null,null,null,null,null,null,null,null,null,null,3210,22]
[null,null,null,null,null,null,null,null,null,null,null,null,null,null,null,null,null,null,null,3220,22]
[null,null,null,null,null,null,null,null,null,null,null,null,null,null,null,null,null,null,null,3230,22]
[null,null,null,null,null,null,null,null,null,null,null,null,null,null,null,null,null,null,null,3240,22]
[null,null,null,null,null,null,null,null,null,null,null,null,null,null,null,null,null,null,null,3250,22]
[null,null,null,null,null,null,null,null,null,null,null,null,null,null,null,null,null,null,null,3260,22]
[null,null,null,null,null,null,null,null,null,null,null,null,null,null,null,null,null,null,null,3270,22]
[null,null,null,null,null,null,null,null,null,null,null,null,null,null,null,null,null,null,null,3280,22]
[null,null,null,null,null,null,null,null,null,null,null,null,null,null,null,null,null,null,null,3290,22]
[null,null,null,null,null,null,null,null,null,null,null,null,null,null,null,null,null,null,null,3300,22]
[null,null,null,null,null,null,null,null,null,null,null,null,null,null,null,null,null,null,null,3310,22]
[null,null,null,null,null,null,null,null,null,null,null,null,null,null,null,null,null,null,null,3320,22]
[null,null,null,null,null,null,null,null,null,null,null,null,null,null,null,null,null,null,null,3330,22]
[null,null,null,null,null,null,null,null,null,null,null,null,null,null,null,null,null,null,null,3340,22]
[null,null,null,null,null,null,null,null,null,null,null,null,null,null,null,null,null,null,null,3350,22]
[null,null,null,null,null,null,null,null,null,null,null,null,null,null,null,null,null,null,null,3360,22]
[null,null,null,null,null,null,null,null,null,null,null,null,null,null,null,null,null,null,null,3370,22]
[null,null,null,null,null,null,null,null,null,null,null,null,null,null,null,null,null,null,null,3380,22]
[null,null,null,null,null,null,null,null,null,null,null,null,null,null,null,null,null,null,null,3390,22]
[null,null,null,null,null,null,null,null,null,null,null,null,null,null,null,null,null,null,null,3400,22]
[null,null,null,null,null,null,null,null,null,null,null,null,null,null,null,null,null,null,null,3410,22]
[null,null,null,null,null,null,null,null,null,null,null,null,null,null,null,null,null,null,null,3420,22]
[null,null,null,null,null,null,null,null,null,null,null,null,null,null,null,null,null,null,null,3430,22]
[null,null,null,null,null,null,null,null,null,null,null,null,null,null,null,null,null,null,null,3440,22]
[null,null,null,null,null,null,null,null,null,null,null,null,null,null,null,null,null,null,null,3450,22]
[null,null,null,null,null,null,null,null,null,null,null,null,null,null,null,null,null,null,null,3460,22]
[null,null,null,null,null,null,null,null,null,null,null,null,null,null,null,null,null,null,null,3470,22]
[null,null,null,null,null,null,null,null,null,null,null,null,null,null,null,null,null,null,null,3480,22]
[null,null,null,null,null,null,null,null,null,null,null,null,null,null,null,null,null,null,null,3490,22]
[null,null,null,null,null,null,null,null,null,null,null,null,null,null,null,null,null,null,null,3500,23]
[null,null,null,null,null,null,null,null,null,null,null,null,null,null,null,null,null,null,null,3510,23]
[null,null,null,null,null,null,null,null,null,null,null,null,null,null,null,null,null,null,null,3520,23]
[null,null,null,null,null,null,null,null,null,null,null,null,null,null,null,null,null,null,null,3530,23]
[null,null,null,null,null,null,null,null,null,null,null,null,null,null,null,null,null,null,null,3540,23]
[null,null,null,null,null,null,null,null,null,null,null,null,null,null,null,null,null,null,null,3550,23]
[null,null,null,null,null,null,null,null,null,null,null,null,null,null,null,null,null,null,null,3560,23]
[null,null,null,null,null,null,null,null,null,null,null,null,null,null,null,null,null,null,null,3570,23]
[null,null,null,null,null,null,null,null,null,null,null,null,null,null,null,null,null,null,null,3580,23]
[null,null,null,null,null,null,null,null,null,null,null,null,null,null,null,null,null,null,null,3590,23]
[null,null,null,null,null,null,null,null,null,null,null,null,null,null,null,null,null,null,null,3600,23]
[null,null,null,null,null,null,null,null,null,null,null,null,null,null,null,null,null,null,null,3610,23]
[null,null,null,null,null,null,null,null,null,null,null,null,null,null,null,null,null,null,null,3620,23]
[null,null,null,null,null,null,null,null,null,null,null,null,null,null,null,null,null,null,null,3630,23]
[null,null,null,null,null,null,null,null,null,null,null,null,null,null,null,null,null,null,null,3640,23]
[null,null,null,null,null,null,null,null,null,null,null,null,null,null,null,null,null,null,null,3650,23]
[null,null,null,null,null,null,null,null,null,null,null,null,null,null,null,null,null,null,null,3660,23]
[null,null,null,null,null,null,null,null,null,null,null,null,null,null,null,null,null,null,null,3670,23]
[null,null,null,null,null,null,null,null,null,null,null,null,null,null,null,null,null,null,null,3680,23]
[null,null,null,null,null,null,null,null,null,null,null,null,null,null,null,null,null,null,null,3690,23]
[null,null,null,null,null,null,null,null,null,null,null,null,null,null,null,null,null,null,null,3700,23]
[null,null,null,null,null,null,null,null,null,null,null,null,null,null,null,null,null,null,null,3710,23]
[null,null,null,null,null,null,null,null,null,null,null,null,null,null,null,null,null,null,null,3720,23]
[null,null,null,null,null,null,null,null,null,null,null,null,null,null,null,null,null,null,null,3730,23]
[null,null,null,null,null,null,null,null,null,null,null,null,null,null,null,null,null,null,null,3740,23]
[null,null,null,null,null,null,null,null,null,null,null,null,null,null,null,null,null,null,null,3750,23]
[null,null,null,null,null,null,null,null,null,null,null,null,null,null,null,null,null,null,null,3760,23]
[null,null,null,null,null,null,null,null,null,null,null,null,null,null,null,null,null,null,null,3770,23]
[null,null,null,null,null,null,null,null,null,null,null,null,null,null,null,null,null,null,null,3780,23]
[null,null,null,null,null,null,null,null,null,null,null,null,null,null,null,null,null,null,null,3790,23]
[null,null,null,null,null,null,null,null,null,null,null,null,null,null,null,null,null,null,null,3800,23]
[null,null,null,null,null,null,null,null,null,null,null,null,null,null,null,null,null,null,null,3810,23]
[null,null,null,null,null,null,null,null,null,null,null,null,null,null,null,null,null,null,null,3820,23]
[null,null,null,null,null,null,null,null,null,null,null,null,null,null,null,null,null,null,null,3830,23]
[null,null,null,null,null,null,null,null,null,null,null,null,null,null,null,null,null,null,null,3840,23]
[null,null,null,null,null,null,null,null,null,null,null,null,null,null,null,null,null,null,null,3850,23]
[null,null,null,null,null,null,null,null,null,null,null,null,null,null,null,null,null,null,null,3860,23]
[null,null,null,null,null,null,null,null,null,null,null,null,null,null,null,null,null,null,null,3870,23]
[null,null,null,null,null,null,null,null,null,null,null,null,null,null,null,null,null,null,null,3880,23]
[null,null,null,null,null,null,null,null,null,null,null,null,null,null,null,null,null,null,null,3890,23]
[null,null,null,null,null,null,null,null,null,null,null,null,null,null,null,null,null,null,null,3900,23]
[null,null,null,null,null,null,null,null,null,null,null,null,null,null,null,null,null,null,null,3910,23]
[null,null,null,null,null,null,null,null,null,null,null,null,null,null,null,null,null,null,null,3920,23]
[null,null,null,null,null,null,null,null,null,null,null,null,null,null,null,null,null,null,null,3930,23]
[null,null,null,null,null,null,null,null,null,null,null,null,null,null,null,null,null,null,null,3940,23]
[null,null,null,null,null,null,null,null,null,null,null,null,null,null,null,null,null,null,null,3950,23]
[null,null,null,null,null,null,null,null,null,null,null,null,null,null,null,null,null,null,null,3960,23]
[null,null,null,null,null,null,null,null,null,null,null,null,null,null,null,null,null,null,null,3970,23]
[null,null,null,null,null,null,null,null,null,null,null,null,null,null,null,null,null,null,null,3980,23]
[null,null,null,null,null,null,null,null,null,null,null,null,null,null,null,null,null,null,null,3990,23]
[null,null,null,null,null,null,null,null,null,null,null,null,null,null,null,null,null,null,null,4000,24]

{"sheet":"TAVOLI 18m","index":2,"n_rows":26,"n_cols":17,"rows_kept":26,"cut":false,"hidden":false,"merged":[[2,5,2,6],[2,14,2,15]]}
["DUPLICATO",null,"TAVOLO 1",null,null,null,null,null,null,"DUPLICATO",null,"TAVOLO 2"]
[]
["Coppia ","Boards","Contratto",null,null,"Punti",null,"Coppia",null,"Coppia ","Boards","Contratto",null,null,"Punti",null,"Coppia"]
["N-S",null,null,"giocato da","attacco","N-S","E-O","E-O",null,"N-S",null,null,"giocato da","attacco","N-S","E-O","E-O"]
[null,1,null,null,null,null,null,null,null,null,1]
[null,2,null,null,null,null,null,null,null,null,2]
[1,3,null,null,null,null,null,2,null,3,3,null,null,null,null,null,4]
[null,4,null,null,null,null,null,null,null,null,4]
[null,5,null,null,null,null,null,null,null,null,5]
[null,6,null,null,null,null,null,null,null,null,6]
[null,1,null,null,null,null,null,null,null,null,1]
[null,2,null,null,null,null,null,null,null,null,2]
[1,3,null,null,null,null,null,4,null,2,3,null,null,null,null,null,3]
[null,4,null,null,null,null,null,null,null,null,4]
[null,5,null,null,null,null,null,null,null,null,5]
[null,6,null,null,null,null,null,null,null,null,6]
[null,1,null,null,null,null,null,null,null,null,1]
[null,2,null,null,null,null,null,null,null,null,2]
[1,3,null,null,null,null,null,3,null,4,3,null,null,null,null,null,2]
[null,4,null,null,null,null,null,null,null,null,4]
[null,5,null,null,null,null,null,null,null,null,5]
[null,6,null,null,null,null,null,null,null,null,6]
[]
["COPPIA 1 …………………………………",null,null,null,"COPPIA 3 …………………………………",null,null,null,null,"COPPIA 1 …………………………………",null,null,null,"COPPIA 3 …………………………………"]
[]
["COPPIA 2 …………………………………",null,null,null,"COPPIA 4 …………………………………",null,null,null,null,"COPPIA 2 …………………………………",null,null,null,"COPPIA 4 …………………………………"]

{"sheet":"TAVOLI 24m","index":3,"n_rows":32,"n_cols":17,"rows_kept":32,"cut":false,"hidden":false,"merged":[[2,5,2,6],[2,14,2,15]]}
["DUPLICATO",null,"TAVOLO 1",null,null,null,null,null,null,"DUPLICATO",null,"TAVOLO 2"]
[]
["Coppia ","Boards","Contratto",null,null,"Punti",null,"Coppia",null,"Coppia ","Boards","Contratto",null,null,"Punti",null,"Coppia"]
["N-S",null,null,"giocato da","attacco","N-S","E-O","E-O",null,"N-S",null,null,"giocato da","attacco","N-S","E-O","E-O"]
[null,1,null,null,null,null,null,null,null,null,1]
[null,2,null,null,null,null,null,null,null,null,2]
[null,3,null,null,null,null,null,null,null,null,3]
[1,4,null,null,null,null,null,2,null,3,4,null,null,null,null,null,4]
[null,5,null,null,null,null,null,null,null,null,5]
[null,6,null,null,null,null,null,null,null,null,6]
[null,7,null,null,null,null,null,null,null,null,7]
[null,8,null,null,null,null,null,null,null,null,8]
[null,1,null,null,null,null,null,null,null,null,1]
[null,2,null,null,null,null,null,null,null,null,2]
[null,3,null,null,null,null,null,null,null,null,3]
[1,4,null,null,null,null,null,4,null,2,4,null,null,null,null,null,3]
[null,5,null,null,null,null,null,null,null,null,5]
[null,6,null,null,null,null,null,null,null,null,6]
[null,7,null,null,null,null,null,null,null,null,7]
[null,8,null,null,null,null,null,null,null,null,8]
[null,1,null,null,null,null,null,null,null,null,1]
[null,2,null,null,null,null,null,null,null,null,2]
[null,3,null,null,null,null,null,null,null,null,3]
[1,4,null,null,null,null,null,3,null,4,4,null,null,null,null,null,2]
[null,5,null,null,null,null,null,null,null,null,5]
[null,6,null,null,null,null,null,null,null,null,6]
[null,7,null,null,null,null,null,null,null,null,7]
[null,8,null,null,null,null,null,null,null,null,8]
[]
["COPPIA 1 …………………………………",null,null,null,"COPPIA 3 …………………………………",null,null,null,null,"COPPIA 1 …………………………………",null,null,null,"COPPIA 3 …………………………………"]
[]
["COPPIA 2 …………………………………",null,null,null,"COPPIA 4 …………………………………",null,null,null,null,"COPPIA 2 …………………………………",null,null,null,"COPPIA 4 …………………………………"]